[Event "Titled Tuesday Blitz April 4 Early 2023"]
[White "Theytookourjobs"]
[Black "Dushyant Sharma"]
[BlackFideId "25065130"]
[WhiteElo "2310"]
[BlackElo "2198"]
[Result "0-1"]
[Round "05"]
[TimeControl "180+2"]
[Date "2023.04.04"]
[WhiteClock "0:00:33"]
[BlackClock "0:02:03"]

1. d4 {[%clk 0:02:47]}  d5 {[%clk 0:02:47]} 2. Bf4 {[%clk 0:02:47]}  e6 {[%clk 0:02:48]} 3. Nf3 {[%clk 0:02:47]}  Bd6 {[%clk 0:02:48]} 4. Ne5 {[%clk 0:02:46]}  f5 {[%clk 0:02:48]} 5. e3 {[%clk 0:02:40]}  Nf6 {[%clk 0:02:48]} 6. Nd2 {[%clk 0:02:33]}  O-O {[%clk 0:02:47]} 7. Be2 {[%clk 0:02:10]}  c5 {[%clk 0:02:46]} 8. c3 {[%clk 0:02:08]}  Nc6 {[%clk 0:02:47]} 9. g4 {[%clk 0:01:57]}  Qc7 {[%clk 0:02:43]} 10. g5 {[%clk 0:01:41]}  Ne4 {[%clk 0:02:39]} 11. Nxe4 {[%clk 0:01:41]}  fxe4 {[%clk 0:02:39]} 12. Nxc6 {[%clk 0:01:26]}  Bxf4 {[%clk 0:02:39]} 13. exf4 {[%clk 0:01:18]}  bxc6 {[%clk 0:02:36]} 14. dxc5 {[%clk 0:01:12]}  Qxf4 {[%clk 0:02:36]} 15. Qd4 {[%clk 0:01:13]}  Qxg5 {[%clk 0:02:32]} 16. h4 {[%clk 0:01:08]}  Qf4 {[%clk 0:02:09]} 17. O-O {[%clk 0:00:41]}  e5 {[%clk 0:02:03]} 18. Qe3 {[%clk 0:00:33]}  Qxh4 {[%clk 0:02:03]} 0-1


[Site "https://www.chess.com"]

[Event "Titled Tuesday Blitz April 4 Early 2023"]
[White "Shapiro, Viktor"]
[Black "Kohler, Aran"]
[WhiteFideId "4175700"]
[BlackFideId "1002856"]
[WhiteElo "2152"]
[BlackElo "2299"]
[Result "1-0"]
[Round "05"]
[TimeControl "180+2"]
[Date "2023.04.04"]
[WhiteClock "0:00:28"]
[BlackClock "0:00:03"]

1. c4 {[%clk 0:02:43]}  e5 {[%clk 0:02:58]} 2. Nc3 {[%clk 0:02:43]}  Nf6 {[%clk 0:02:58]} 3. g3 {[%clk 0:02:44]}  c6 {[%clk 0:02:54]} 4. Bg2 {[%clk 0:02:44]}  d5 {[%clk 0:02:52]} 5. cxd5 {[%clk 0:02:44]}  cxd5 {[%clk 0:02:53]} 6. Qb3 {[%clk 0:02:45]}  d4 {[%clk 0:02:41]} 7. Bxb7 {[%clk 0:02:43]}  Bxb7 {[%clk 0:02:42]} 8. Qxb7 {[%clk 0:02:35]}  Nbd7 {[%clk 0:02:42]} 9. Nd5 {[%clk 0:02:35]}  Nxd5 {[%clk 0:02:32]} 10. Qxd5 {[%clk 0:02:34]}  Rc8 {[%clk 0:02:22]} 11. Nf3 {[%clk 0:02:30]}  Rc5 {[%clk 0:02:13]} 12. Qb3 {[%clk 0:02:20]}  Bd6 {[%clk 0:02:01]} 13. O-O {[%clk 0:02:17]}  O-O {[%clk 0:01:56]} 14. d3 {[%clk 0:02:15]}  Qc7 {[%clk 0:01:48]} 15. Bd2 {[%clk 0:01:54]}  Rb8 {[%clk 0:01:47]} 16. Qa4 {[%clk 0:01:39]}  Rxb2 {[%clk 0:01:32]} 17. Rfc1 {[%clk 0:01:29]}  Rbc2 {[%clk 0:01:03]} 18. Rxc2 {[%clk 0:01:23]}  Rxc2 {[%clk 0:01:03]} 19. Ba5 {[%clk 0:01:23]}  Qc6 {[%clk 0:00:57]} 20. Qxc6 {[%clk 0:01:21]}  Rxc6 {[%clk 0:00:57]} 21. Kf1 {[%clk 0:01:19]}  f6 {[%clk 0:00:55]} 22. Nd2 {[%clk 0:01:12]}  Rb6 {[%clk 0:00:47]} 23. Bxb6 {[%clk 0:01:11]}  Nxb6 {[%clk 0:00:47]} 24. Nc4 {[%clk 0:01:03]}  Bc5 {[%clk 0:00:30]} 25. Nxb6 {[%clk 0:01:01]}  axb6 {[%clk 0:00:20]} 26. a4 {[%clk 0:01:00]}  Bb4 {[%clk 0:00:18]} 27. e3 {[%clk 0:00:58]}  dxe3 {[%clk 0:00:17]} 28. fxe3 {[%clk 0:00:58]}  Kf7 {[%clk 0:00:17]} 29. Ke2 {[%clk 0:00:58]}  Ke6 {[%clk 0:00:17]} 30. Kd1 {[%clk 0:00:58]}  Kd5 {[%clk 0:00:14]} 31. Kc2 {[%clk 0:00:58]}  Ba5 {[%clk 0:00:13]} 32. g4 {[%clk 0:00:55]}  g6 {[%clk 0:00:13]} 33. Rf1 {[%clk 0:00:53]}  Ke6 {[%clk 0:00:13]} 34. e4 {[%clk 0:00:52]}  Bb4 {[%clk 0:00:10]} 35. Kb3 {[%clk 0:00:52]}  Bc5 {[%clk 0:00:09]} 36. Kc4 {[%clk 0:00:52]}  Bd4 {[%clk 0:00:09]} 37. h3 {[%clk 0:00:47]}  Ke7 {[%clk 0:00:08]} 38. Kd5 {[%clk 0:00:47]}  Be3 {[%clk 0:00:07]} 39. Rh1 {[%clk 0:00:34]}  Kd7 {[%clk 0:00:04]} 40. Rh2 {[%clk 0:00:33]}  Ke7 {[%clk 0:00:03]} 41. Rc2 {[%clk 0:00:29]}  Kd7 {[%clk 0:00:03]} 42. Rc6 {[%clk 0:00:28]} 1-0


[Site "https://www.chess.com"]

[Event "Titled Tuesday Blitz April 4 Early 2023"]
[White "Romero Pallares, Daniel"]
[Black "Rose, Felix"]
[WhiteFideId "32025637"]
[BlackFideId "5105722"]
[WhiteElo "2195"]
[BlackElo "2039"]
[Result "1-0"]
[Round "05"]
[TimeControl "180+2"]
[Date "2023.04.04"]
[WhiteClock "0:00:38"]
[BlackClock "0:00:02"]

1. e4 {[%clk 0:02:59]}  e5 {[%clk 0:02:58]} 2. Nf3 {[%clk 0:02:57]}  Nc6 {[%clk 0:02:59]} 3. d4 {[%clk 0:02:57]}  exd4 {[%clk 0:02:59]} 4. Bc4 {[%clk 0:02:58]}  Nf6 {[%clk 0:02:58]} 5. e5 {[%clk 0:02:58]}  d5 {[%clk 0:02:58]} 6. Bb5 {[%clk 0:02:59]}  Ne4 {[%clk 0:02:59]} 7. Nxd4 {[%clk 0:02:59]}  Bc5 {[%clk 0:02:59]} 8. Be3 {[%clk 0:02:59]}  O-O {[%clk 0:02:57]} 9. Nxc6 {[%clk 0:02:51]}  bxc6 {[%clk 0:02:57]} 10. Bxc5 {[%clk 0:02:51]}  Nxc5 {[%clk 0:02:54]} 11. Bxc6 {[%clk 0:02:52]}  Ba6 {[%clk 0:02:34]} 12. Nc3 {[%clk 0:02:19]}  d4 {[%clk 0:01:06]} 13. Bxa8 {[%clk 0:02:13]}  Qxa8 {[%clk 0:00:54]} 14. Qxd4 {[%clk 0:02:13]}  Ne6 {[%clk 0:00:49]} 15. Qa4 {[%clk 0:01:55]}  Qxg2 {[%clk 0:00:24]} 16. O-O-O {[%clk 0:01:53]}  Bb7 {[%clk 0:00:17]} 17. Qxa7 {[%clk 0:01:35]}  Qg5+ {[%clk 0:00:17]} 18. Qe3 {[%clk 0:01:25]}  Qxe3+ {[%clk 0:00:12]} 19. fxe3 {[%clk 0:01:26]}  Bxh1 {[%clk 0:00:12]} 20. Rxh1 {[%clk 0:01:27]}  Rd8 {[%clk 0:00:12]} 21. Rd1 {[%clk 0:01:26]}  Rb8 {[%clk 0:00:12]} 22. a4 {[%clk 0:01:21]}  Kf8 {[%clk 0:00:12]} 23. b3 {[%clk 0:01:19]}  Ke7 {[%clk 0:00:12]} 24. Kb2 {[%clk 0:01:09]}  c6 {[%clk 0:00:12]} 25. Ka3 {[%clk 0:01:08]}  Nc7 {[%clk 0:00:07]} 26. Rd6 {[%clk 0:01:04]}  c5 {[%clk 0:00:07]} 27. Rc6 {[%clk 0:00:59]}  Ne6 {[%clk 0:00:08]} 28. Nd5+ {[%clk 0:00:58]}  Kd7 {[%clk 0:00:08]} 29. Rd6+ {[%clk 0:00:58]}  Kc8 {[%clk 0:00:08]} 30. a5 {[%clk 0:00:54]}  g6 {[%clk 0:00:07]} 31. c3 {[%clk 0:00:53]}  h5 {[%clk 0:00:07]} 32. b4 {[%clk 0:00:53]}  cxb4+ {[%clk 0:00:06]} 33. cxb4 {[%clk 0:00:54]}  Ra8 {[%clk 0:00:04]} 34. Ka4 {[%clk 0:00:53]}  g5 {[%clk 0:00:02]} 35. b5 {[%clk 0:00:53]}  g4 {[%clk 0:00:02]} 36. b6 {[%clk 0:00:47]}  h4 {[%clk 0:00:02]} 37. Kb5 {[%clk 0:00:37]}  g3 {[%clk 0:00:02]} 38. Ne7+ {[%clk 0:00:38]} 1-0


[Site "https://www.chess.com"]

[Event "Titled Tuesday Blitz April 4 Early 2023"]
[White "Orujov2008"]
[Black "Dudzinski, Pawel"]
[BlackFideId "1117890"]
[WhiteElo "2283"]
[BlackElo "2099"]
[Result "0-1"]
[Round "05"]
[TimeControl "180+2"]
[Date "2023.04.04"]
[WhiteClock "0:00:12"]
[BlackClock "0:00:28"]

1. e4 {[%clk 0:03:00]}  c6 {[%clk 0:00:39]} 2. d4 {[%clk 0:02:59]}  d5 {[%clk 0:00:40]} 3. Nc3 {[%clk 0:02:59]}  g6 {[%clk 0:00:39]} 4. Nf3 {[%clk 0:02:57]}  Bg7 {[%clk 0:00:40]} 5. exd5 {[%clk 0:02:48]}  cxd5 {[%clk 0:00:39]} 6. Bb5+ {[%clk 0:02:49]}  Bd7 {[%clk 0:00:39]} 7. Bd3 {[%clk 0:02:45]}  Nc6 {[%clk 0:00:39]} 8. Be3 {[%clk 0:02:43]}  Nf6 {[%clk 0:00:39]} 9. O-O {[%clk 0:02:42]}  O-O {[%clk 0:00:40]} 10. h3 {[%clk 0:02:42]}  Bf5 {[%clk 0:00:36]} 11. Bxf5 {[%clk 0:02:41]}  gxf5 {[%clk 0:00:37]} 12. Ne2 {[%clk 0:02:39]}  e6 {[%clk 0:00:37]} 13. c3 {[%clk 0:02:40]}  Ne4 {[%clk 0:00:36]} 14. Nd2 {[%clk 0:02:37]}  Kh8 {[%clk 0:00:37]} 15. f3 {[%clk 0:02:37]}  Nxd2 {[%clk 0:00:35]} 16. Qxd2 {[%clk 0:02:36]}  Rg8 {[%clk 0:00:32]} 17. Bh6 {[%clk 0:02:36]}  Qf6 {[%clk 0:00:31]} 18. Bxg7+ {[%clk 0:02:35]}  Rxg7 {[%clk 0:00:32]} 19. Rf2 {[%clk 0:02:31]}  Rag8 {[%clk 0:00:32]} 20. Nf4 {[%clk 0:02:22]}  Qh4 {[%clk 0:00:32]} 21. b3 {[%clk 0:02:11]}  Ne7 {[%clk 0:00:33]} 22. c4 {[%clk 0:02:11]}  dxc4 {[%clk 0:00:33]} 23. bxc4 {[%clk 0:02:11]}  Ng6 {[%clk 0:00:34]} 24. Nxg6+ {[%clk 0:02:10]}  Rxg6 {[%clk 0:00:35]} 25. d5 {[%clk 0:02:10]}  Qxh3 {[%clk 0:00:34]} 26. d6 {[%clk 0:01:47]}  Qh4 {[%clk 0:00:34]} 27. Rd1 {[%clk 0:01:35]}  Qxc4 {[%clk 0:00:34]} 28. d7 {[%clk 0:01:33]}  Rd8 {[%clk 0:00:34]} 29. Qb2+ {[%clk 0:01:27]}  f6 {[%clk 0:00:32]} 30. Qxb7 {[%clk 0:01:26]}  Rg7 {[%clk 0:00:33]} 31. Qxa7 {[%clk 0:01:23]}  Qc6 {[%clk 0:00:33]} 32. Rfd2 {[%clk 0:01:21]}  Re7 {[%clk 0:00:33]} 33. Qd4 {[%clk 0:01:12]}  Kg7 {[%clk 0:00:32]} 34. Kh1 {[%clk 0:01:04]}  e5 {[%clk 0:00:32]} 35. Qd6 {[%clk 0:01:02]}  Qxd6 {[%clk 0:00:30]} 36. Rxd6 {[%clk 0:01:03]}  Kf7 {[%clk 0:00:30]} 37. a4 {[%clk 0:01:03]}  Re6 {[%clk 0:00:30]} 38. R6d5 {[%clk 0:00:45]}  Ra6 {[%clk 0:00:30]} 39. a5 {[%clk 0:00:45]}  Ke7 {[%clk 0:00:31]} 40. Kh2 {[%clk 0:00:44]}  Ra7 {[%clk 0:00:31]} 41. Ra1 {[%clk 0:00:27]}  Rdxd7 {[%clk 0:00:31]} 42. Rxd7+ {[%clk 0:00:27]}  Kxd7 {[%clk 0:00:31]} 43. Kh3 {[%clk 0:00:27]}  Kc6 {[%clk 0:00:31]} 44. Kh4 {[%clk 0:00:28]}  Kb5 {[%clk 0:00:30]} 45. Kh5 {[%clk 0:00:26]}  Rxa5 {[%clk 0:00:30]} 46. Rb1+ {[%clk 0:00:26]}  Kc5 {[%clk 0:00:30]} 47. Rb7 {[%clk 0:00:20]}  Ra2 {[%clk 0:00:30]} 48. g3 {[%clk 0:00:15]}  e4 {[%clk 0:00:30]} 49. fxe4 {[%clk 0:00:15]}  fxe4 {[%clk 0:00:30]} 50. Kg4 {[%clk 0:00:15]}  Rf2 {[%clk 0:00:28]} 51. Rxh7 {[%clk 0:00:13]}  e3 {[%clk 0:00:27]} 52. Re7 {[%clk 0:00:12]}  e2 {[%clk 0:00:28]} 53. Kh3 {[%clk 0:00:11]}  Kd4 {[%clk 0:00:28]} 54. g4 {[%clk 0:00:12]}  Kd3 {[%clk 0:00:28]} 55. Kg3 {[%clk 0:00:12]}  Rf1 {[%clk 0:00:28]} 56. Rd7+ {[%clk 0:00:12]}  Kc4 {[%clk 0:00:28]} 0-1


[Site "https://www.chess.com"]

[Event "Titled Tuesday Blitz April 4 Early 2023"]
[White "KorolDimitriy75"]
[Black "Antonio, Jorge Carlos"]
[BlackFideId "113190"]
[WhiteElo "2455"]
[BlackElo "2247"]
[Result "0-1"]
[Round "05"]
[TimeControl "180+2"]
[Date "2023.04.04"]
[WhiteClock "0:00:02"]
[BlackClock "0:00:32"]

1. d4 {[%clk 0:03:00]}  d5 {[%clk 0:02:41]} 2. c4 {[%clk 0:03:00]}  c6 {[%clk 0:02:38]} 3. Nc3 {[%clk 0:03:01]}  dxc4 {[%clk 0:02:23]} 4. a4 {[%clk 0:03:00]}  e6 {[%clk 0:02:18]} 5. e4 {[%clk 0:02:59]}  Bb4 {[%clk 0:02:00]} 6. Bxc4 {[%clk 0:02:57]}  Nf6 {[%clk 0:01:56]} 7. e5 {[%clk 0:02:30]}  Nd5 {[%clk 0:01:55]} 8. Qb3 {[%clk 0:02:03]}  c5 {[%clk 0:01:49]} 9. dxc5 {[%clk 0:01:23]}  Nc6 {[%clk 0:01:46]} 10. Nf3 {[%clk 0:01:19]}  Na5 {[%clk 0:01:42]} 11. Bb5+ {[%clk 0:01:18]}  Bd7 {[%clk 0:01:39]} 12. Qc2 {[%clk 0:01:16]}  Nxc3 {[%clk 0:01:34]} 13. bxc3 {[%clk 0:01:16]}  Bxc5 {[%clk 0:01:32]} 14. O-O {[%clk 0:01:15]}  a6 {[%clk 0:01:26]} 15. Bd3 {[%clk 0:01:04]}  Bc6 {[%clk 0:01:21]} 16. Be4 {[%clk 0:01:01]}  Qc7 {[%clk 0:01:18]} 17. Bf4 {[%clk 0:00:48]}  Rd8 {[%clk 0:01:09]} 18. Rfd1 {[%clk 0:00:39]}  h6 {[%clk 0:01:03]} 19. Rxd8+ {[%clk 0:00:32]}  Qxd8 {[%clk 0:01:02]} 20. Rd1 {[%clk 0:00:32]}  Qc7 {[%clk 0:01:00]} 21. h3 {[%clk 0:00:23]}  O-O {[%clk 0:00:59]} 22. Bxc6 {[%clk 0:00:17]}  Qxc6 {[%clk 0:00:53]} 23. Qd2 {[%clk 0:00:09]}  Nc4 {[%clk 0:00:51]} 24. Qe2 {[%clk 0:00:08]}  Qxa4 {[%clk 0:00:48]} 25. Kh2 {[%clk 0:00:03]}  b5 {[%clk 0:00:45]} 26. Re1 {[%clk 0:00:02]}  Rd8 {[%clk 0:00:40]} 27. Qe4 {[%clk 0:00:02]}  Nb6 {[%clk 0:00:32]} 0-1


[Site "https://www.chess.com"]

[Event "Titled Tuesday Blitz April 4 Early 2023"]
[White "Goncalves, Davi Sulzbacher"]
[Black "Blokhin, Sofia"]
[WhiteFideId "2154510"]
[BlackFideId "4508190"]
[WhiteElo "2182"]
[BlackElo "1994"]
[Result "1-0"]
[Round "05"]
[TimeControl "180+2"]
[Date "2023.04.04"]
[WhiteClock "0:01:15"]
[BlackClock "0:01:07"]

1. d4 {[%clk 0:03:00]}  g6 {[%clk 0:02:59]} 2. e4 {[%clk 0:03:00]}  Bg7 {[%clk 0:02:57]} 3. f4 {[%clk 0:03:00]}  d6 {[%clk 0:02:55]} 4. Nf3 {[%clk 0:03:00]}  Nf6 {[%clk 0:02:54]} 5. Bd3 {[%clk 0:02:59]}  c6 {[%clk 0:02:53]} 6. O-O {[%clk 0:02:58]}  O-O {[%clk 0:02:53]} 7. c4 {[%clk 0:02:56]}  a6 {[%clk 0:02:52]} 8. Nc3 {[%clk 0:02:56]}  b5 {[%clk 0:02:52]} 9. e5 {[%clk 0:02:54]}  dxe5 {[%clk 0:02:50]} 10. fxe5 {[%clk 0:02:53]}  Ne8 {[%clk 0:02:47]} 11. c5 {[%clk 0:02:39]}  Bg4 {[%clk 0:02:44]} 12. Be3 {[%clk 0:02:38]}  Nc7 {[%clk 0:02:39]} 13. Be4 {[%clk 0:02:35]}  Nd5 {[%clk 0:02:35]} 14. Bf2 {[%clk 0:02:22]}  f5 {[%clk 0:02:23]} 15. exf6 {[%clk 0:01:49]}  exf6 {[%clk 0:02:16]} 16. Qb3 {[%clk 0:01:32]}  Be6 {[%clk 0:02:14]} 17. Bxd5 {[%clk 0:01:28]}  cxd5 {[%clk 0:02:11]} 18. Rfe1 {[%clk 0:01:27]}  Bf7 {[%clk 0:02:10]} 19. a4 {[%clk 0:01:28]}  bxa4 {[%clk 0:02:04]} 20. Qb7 {[%clk 0:01:22]}  Nd7 {[%clk 0:01:55]} 21. c6 {[%clk 0:01:22]}  Nb6 {[%clk 0:01:49]} 22. c7 {[%clk 0:01:20]}  Qd6 {[%clk 0:01:48]} 23. Bg3 {[%clk 0:01:19]}  Qb4 {[%clk 0:01:45]} 24. Nxa4 {[%clk 0:01:19]}  Ra7 {[%clk 0:01:22]} 25. Qxb6 {[%clk 0:01:17]}  Qxb6 {[%clk 0:01:18]} 26. Nxb6 {[%clk 0:01:18]}  Rb7 {[%clk 0:01:18]} 27. c8=Q {[%clk 0:01:17]}  Rxc8 {[%clk 0:01:08]} 28. Nxc8 {[%clk 0:01:18]}  Rxb2 {[%clk 0:01:07]} 29. Nd6 {[%clk 0:01:15]} 1-0


[Site "https://www.chess.com"]

[Event "Titled Tuesday Blitz April 4 Early 2023"]
[White "Kopczynski, Michal"]
[Black "Larina, Maria"]
[WhiteFideId "1124200"]
[BlackFideId "24113182"]
[WhiteElo "2212"]
[BlackElo "1848"]
[Result "1-0"]
[Round "05"]
[TimeControl "180+2"]
[Date "2023.04.04"]
[WhiteClock "0:01:22"]
[BlackClock "0:00:33"]

1. e4 {[%clk 0:03:00]}  c6 {[%clk 0:02:59]} 2. d4 {[%clk 0:03:01]}  d5 {[%clk 0:02:59]} 3. e5 {[%clk 0:03:01]}  Bf5 {[%clk 0:02:58]} 4. g4 {[%clk 0:03:01]}  Bd7 {[%clk 0:02:57]} 5. f4 {[%clk 0:03:02]}  e6 {[%clk 0:02:56]} 6. Nf3 {[%clk 0:03:02]}  c5 {[%clk 0:02:55]} 7. Be3 {[%clk 0:03:01]}  cxd4 {[%clk 0:02:51]} 8. Nxd4 {[%clk 0:03:02]}  Nc6 {[%clk 0:02:51]} 9. Nb3 {[%clk 0:03:02]}  Be7 {[%clk 0:02:19]} 10. g5 {[%clk 0:03:00]}  f6 {[%clk 0:01:56]} 11. gxf6 {[%clk 0:02:57]}  gxf6 {[%clk 0:01:55]} 12. Qh5+ {[%clk 0:02:57]}  Kf8 {[%clk 0:01:54]} 13. Nc3 {[%clk 0:02:51]}  Be8 {[%clk 0:01:38]} 14. Qh3 {[%clk 0:02:49]}  f5 {[%clk 0:01:36]} 15. O-O-O {[%clk 0:02:48]}  Bf7 {[%clk 0:01:28]} 16. Be2 {[%clk 0:02:44]}  a5 {[%clk 0:01:26]} 17. Bh5 {[%clk 0:02:43]}  Qe8 {[%clk 0:01:24]} 18. Bxf7 {[%clk 0:02:02]}  Qxf7 {[%clk 0:01:24]} 19. Rhg1 {[%clk 0:02:01]}  h5 {[%clk 0:01:13]} 20. Nb5 {[%clk 0:01:54]}  Rc8 {[%clk 0:00:47]} 21. Bc5 {[%clk 0:01:43]}  a4 {[%clk 0:00:44]} 22. Bxe7+ {[%clk 0:01:38]}  Ngxe7 {[%clk 0:00:44]} 23. Nd6 {[%clk 0:01:32]}  Qh7 {[%clk 0:00:42]} 24. Nc5 {[%clk 0:01:24]}  Qh6 {[%clk 0:00:33]} 25. Nd7# {[%clk 0:01:22]} 1-0


[Site "https://www.chess.com"]

[Event "Titled Tuesday Blitz April 4 Early 2023"]
[White "Samarth, J Rao"]
[Black "ArtemDyachuk"]
[WhiteFideId "46652370"]
[WhiteElo "1564"]
[BlackElo "2403"]
[Result "0-1"]
[Round "05"]
[TimeControl "180+2"]
[Date "2023.04.04"]
[WhiteClock "0:00:02"]
[BlackClock "0:00:26"]

1. c4 {[%clk 0:02:39]}  e5 {[%clk 0:02:53]} 2. Nc3 {[%clk 0:02:39]}  Nf6 {[%clk 0:02:52]} 3. Nf3 {[%clk 0:02:38]}  Nc6 {[%clk 0:02:51]} 4. e3 {[%clk 0:02:37]}  d5 {[%clk 0:02:48]} 5. cxd5 {[%clk 0:02:34]}  Nxd5 {[%clk 0:02:49]} 6. Bb5 {[%clk 0:02:30]}  Nxc3 {[%clk 0:02:46]} 7. bxc3 {[%clk 0:02:29]}  Bd6 {[%clk 0:02:43]} 8. d4 {[%clk 0:02:26]}  exd4 {[%clk 0:02:21]} 9. cxd4 {[%clk 0:01:03]}  O-O {[%clk 0:02:16]} 10. O-O {[%clk 0:01:02]}  Bg4 {[%clk 0:02:16]} 11. h3 {[%clk 0:01:01]}  Bh5 {[%clk 0:02:16]} 12. Be2 {[%clk 0:01:00]}  Nb4 {[%clk 0:02:10]} 13. a3 {[%clk 0:00:59]}  Nd5 {[%clk 0:02:07]} 14. Qb3 {[%clk 0:00:59]}  b6 {[%clk 0:02:02]} 15. e4 {[%clk 0:00:59]}  Nf4 {[%clk 0:01:59]} 16. Bc4 {[%clk 0:00:57]}  g5 {[%clk 0:01:40]} 17. e5 {[%clk 0:00:45]}  Be7 {[%clk 0:01:35]} 18. Bxf4 {[%clk 0:00:41]}  gxf4 {[%clk 0:01:34]} 19. Rad1 {[%clk 0:00:40]}  Kh8 {[%clk 0:01:24]} 20. Bd5 {[%clk 0:00:39]}  Rc8 {[%clk 0:01:19]} 21. Bc6 {[%clk 0:00:37]}  Rg8 {[%clk 0:01:09]} 22. a4 {[%clk 0:00:35]}  Rg6 {[%clk 0:01:08]} 23. Be4 {[%clk 0:00:33]}  Rg7 {[%clk 0:01:07]} 24. d5 {[%clk 0:00:32]}  Qg8 {[%clk 0:01:05]} 25. Nd4 {[%clk 0:00:20]}  Bc5 {[%clk 0:00:57]} 26. Nf5 {[%clk 0:00:15]}  Rg5 {[%clk 0:00:51]} 27. Rd3 {[%clk 0:00:13]}  f3 {[%clk 0:00:44]} 28. g3 {[%clk 0:00:11]}  Rxg3+ {[%clk 0:00:41]} 29. Kh2 {[%clk 0:00:05]}  Rg2+ {[%clk 0:00:38]} 30. Kh1 {[%clk 0:00:04]}  Bxf2 {[%clk 0:00:28]} 31. Bxf3 {[%clk 0:00:03]}  Rg1+ {[%clk 0:00:26]} 32. Kh2 {[%clk 0:00:02]}  Rxf1 {[%clk 0:00:26]} 33. Bxh5 {[%clk 0:00:02]}  Qg1# {[%clk 0:00:26]} 0-1


[Site "https://www.chess.com"]

[Event "Titled Tuesday Blitz April 4 Early 2023"]
[White "Hoffmann, Asa"]
[Black "Yonal, Timur"]
[WhiteFideId "2001470"]
[BlackFideId "44115725"]
[WhiteElo "2117"]
[BlackElo "1966"]
[Result "0-1"]
[Round "05"]
[TimeControl "180+2"]
[Date "2023.04.04"]
[WhiteClock "0:00:39"]
[BlackClock "0:00:55"]

1. d4 {[%clk 0:02:54]}  d5 {[%clk 0:02:59]} 2. Bg5 {[%clk 0:02:53]}  f6 {[%clk 0:02:54]} 3. Bf4 {[%clk 0:02:53]}  c5 {[%clk 0:02:52]} 4. e3 {[%clk 0:02:52]}  Nc6 {[%clk 0:02:52]} 5. Nf3 {[%clk 0:02:50]}  Be6 {[%clk 0:02:46]} 6. Nc3 {[%clk 0:02:48]}  Bf7 {[%clk 0:02:45]} 7. Be2 {[%clk 0:02:43]}  g5 {[%clk 0:02:44]} 8. Bg3 {[%clk 0:02:42]}  h5 {[%clk 0:02:43]} 9. h4 {[%clk 0:02:42]}  g4 {[%clk 0:02:42]} 10. Nh2 {[%clk 0:02:33]}  cxd4 {[%clk 0:02:23]} 11. exd4 {[%clk 0:02:33]}  e5 {[%clk 0:02:23]} 12. Bb5 {[%clk 0:02:27]}  Bg7 {[%clk 0:02:05]} 13. O-O {[%clk 0:02:20]}  Nh6 {[%clk 0:01:57]} 14. Re1 {[%clk 0:02:19]}  O-O {[%clk 0:01:56]} 15. Bxc6 {[%clk 0:02:18]}  bxc6 {[%clk 0:01:55]} 16. Qd2 {[%clk 0:01:59]}  Nf5 {[%clk 0:01:53]} 17. Nf1 {[%clk 0:01:54]}  Nxd4 {[%clk 0:01:51]} 18. Rad1 {[%clk 0:01:48]}  Nf5 {[%clk 0:01:43]} 19. Qe2 {[%clk 0:01:42]}  Qb6 {[%clk 0:01:38]} 20. b3 {[%clk 0:01:41]}  Bh6 {[%clk 0:01:31]} 21. Na4 {[%clk 0:01:39]}  Qa5 {[%clk 0:01:27]} 22. Qd3 {[%clk 0:01:24]}  Bg6 {[%clk 0:01:26]} 23. Qc3 {[%clk 0:01:19]}  Qxc3 {[%clk 0:01:08]} 24. Nxc3 {[%clk 0:01:18]}  Nd4 {[%clk 0:01:08]} 25. Rxd4 {[%clk 0:01:06]}  exd4 {[%clk 0:01:08]} 26. Na4 {[%clk 0:00:59]}  Rfe8 {[%clk 0:01:06]} 27. Rd1 {[%clk 0:00:58]}  Bxc2 {[%clk 0:01:04]} 28. Rxd4 {[%clk 0:00:58]}  Re1 {[%clk 0:01:03]} 29. Nc5 {[%clk 0:00:51]}  Bd1 {[%clk 0:01:01]} 30. f3 {[%clk 0:00:50]}  Be3+ {[%clk 0:01:00]} 31. Kh2 {[%clk 0:00:49]}  Rxf1 {[%clk 0:01:00]} 32. Rd3 {[%clk 0:00:45]}  Bxc5 {[%clk 0:01:00]} 33. fxg4 {[%clk 0:00:44]}  hxg4 {[%clk 0:00:54]} 34. Rc3 {[%clk 0:00:41]}  Bg1+ {[%clk 0:00:54]} 35. Kh1 {[%clk 0:00:40]}  Bd4+ {[%clk 0:00:54]} 36. Kh2 {[%clk 0:00:39]}  Bxc3 {[%clk 0:00:55]} 0-1


[Site "https://www.chess.com"]